fUSD/lending_fUSD_20250320
["ID","MTS","AMOUNT","RATE_DAILY","PERIOD"]
[356416972,1742429450216,-151.0,0.00027874,7]
[356416973,1742429450226,-500.0,0.00027874,2]
[356416974,1742429450235,-151.0,0.00027874,7]
[356416975,1742429450246,-500.0,0.00027874,2]
[356416976,1742429450256,-781.06,0.00027874,2]
[356416977,1742429450265,-500.0,0.00027874,2]
[356416978,1742429450274,-500.0,0.00027874,2]
[356416979,1742429450284,-500.0,0.00027874,2]
[356416980,1742429450293,-522.68,0.00027874,2]
[356416981,1742429450303,-500.0,0.00027874,2]
[356416982,1742429450312,-151.0,0.00027874,7]
[356416983,1742429450322,-500.0,0.00027874,2]
[356416984,1742429450332,-151.0,0.00027874,7]
[356416985,1742429450341,-151.0,0.00027874,7]
[356416986,1742429450353,-500.0,0.00027874,2]
[356416987,1742429450363,-151.0,0.00027874,7]
[356416988,1742429450372,-151.856191,0.00027874,7]
[356416989,1742429450382,-151.856191,0.00027874,7]
[356416990,1742429450391,-204.910884,0.00027874,7]
[356416991,1742429450401,-151.0,0.00027874,7]
[356416992,1742429450411,-152.240532,0.00027874,7]
[356416993,1742429450420,-151.856191,0.00027874,7]
[356416994,1742429450429,-151.856191,0.00027874,7]
[356416995,1742429450439,-151.0,0.00027874,7]
[356416996,1742429450448,-151.0,0.00027874,7]
[356416997,1742429450457,-500.0,0.00027874,2]
[356416998,1742429450466,-500.0,0.00027874,2]
[356416999,1742429450475,-151.0,0.00027874,7]
[356417000,1742429450485,-180.250734,0.00027874,7]
[356417001,1742429450494,-500.0,0.00027874,2]
[356417002,1742429450503,-500.0,0.00027874,2]
[356417003,1742429450512,-500.0,0.00027874,2]
[356417004,1742429450522,-500.0,0.00027874,2]
[356417005,1742429450531,-511.75910273,0.00027874,2]
[356417006,1742429450541,-500.0,0.00027874,2]
[356417007,1742429450551,-500.0,0.00027874,2]
[356417008,1742429450562,-500.0,0.00027874,2]
[356417009,1742429450572,-500.0,0.00027874,2]
[356417010,1742429450581,-500.0,0.00027874,2]
[356417011,1742429450591,-500.0,0.00027874,2]
[356417012,1742429450601,-500.0,0.00027874,2]
[356417013,1742429450611,-500.0,0.00027874,2]
[356417014,1742429450621,-500.0,0.00027874,2]
[356417015,1742429450631,-500.0,0.00027874,2]
[356417016,1742429450641,-202.091188,0.00027874,7]
[356417017,1742429450650,-500.0,0.00027874,2]
[356417018,1742429450661,-558.78,0.00027874,2]
[356417019,1742429450671,-809.17,0.00027874,2]
[356417020,1742429450680,-500.0,0.00027874,2]
[356417021,1742429450690,-151.0,0.00027874,7]
[356417022,1742429450700,-151.0,0.00027874,7]
[356417023,1742429450709,-500.0,0.00027874,2]
[356417024,1742429450719,-500.0,0.00027874,2]
[356417025,1742429450729,-500.0,0.00027874,2]
[356417026,1742429450739,-500.0,0.00027874,2]
[356417027,1742429450748,-589.18583516,0.00027874,2]
[356417028,1742429450758,-500.0,0.00027874,2]
[356417029,1742429450767,-500.0,0.00027874,2]
[356417030,1742429450777,-500.0,0.00027874,2]
[356417031,1742429450787,-547.06,0.00027874,2]
[356417032,1742429450796,-724.54,0.00027874,2]
[356417033,1742429450806,-500.0,0.00027874,2]
[356417034,1742429450815,-861.1,0.00027874,2]
[356417035,1742429450824,-765.51,0.00027874,2]
[356417036,1742429450835,-500.0,0.00027874,2]
[356417037,1742429450844,-600.81,0.00027874,2]
[356417038,1742429450855,-442.44358016,0.00027874,2]
[356417039,1742429450864,-500.0,0.00027874,2]
[356417040,1742429450874,-207.274235,0.00027874,7]
[356417041,1742429450884,-500.0,0.00027874,2]
[356417042,1742429450894,-500.0,0.00027874,2]
[356417043,1742429450903,-838.32,0.00027874,2]
[356417044,1742429450916,-500.0,0.00027874,2]
[356417045,1742429450925,-877.03,0.00027874,2]
[356417046,1742429450935,-868.68,0.00027874,2]
[356417047,1742429450944,-151.0,0.00027874,7]
[356417048,1742429450955,-351.14,0.00027874,2]
[356417049,1742429450964,-151.0,0.00027874,7]
[356417050,1742429450973,-500.0,0.00027874,2]
[356417051,1742429450984,-897.12,0.00027874,2]
[356417052,1742429450995,-234.563473,0.00027874,7]
[356417053,1742429451005,-577.2,0.00027874,2]
[356417054,1742429451015,-234.563473,0.00027874,7]
[356417055,1742429451025,-500.0,0.00027874,2]
[356417056,1742429451035,-234.563473,0.00027874,7]
[356417057,1742429451045,-234.563473,0.00027874,7]
[356417058,1742429451055,-500.0,0.00027874,2]
[356417059,1742429451066,-547.06496795,0.00027874,2]
[356417060,1742429451076,-627.93,0.00027874,2]
[356417061,1742429451085,-500.0,0.00027874,2]
[356417062,1742429451095,-500.0,0.00027874,2]
[356417063,1742429451105,-545.31,0.00027874,2]
[356417064,1742429451115,-500.0,0.00027874,2]
[356417065,1742429451125,-680.4,0.00027874,2]
[356417066,1742429451134,-500.0,0.00027874,2]
[356417067,1742429451144,-1763.55,0.00027874,2]
[356417068,1742429451155,-598.69,0.00027874,2]
[356417069,1742429451165,-160.020009,0.00027874,7]
[356417070,1742429451175,-160.020009,0.00027874,7]
[356417071,1742429451186,-500.0,0.00027874,2]
[356417072,1742429451197,-160.020009,0.00027874,7]
[356417073,1742429451206,-500.0,0.00027874,2]
[356417074,1742429451216,-160.020009,0.00027874,7]
[356417075,1742429451226,-864.59,0.00027874,2]
[356417076,1742429451235,-500.0,0.00027874,2]
[356417077,1742429451245,-185.995123,0.00027874,7]
[356417078,1742429451255,-529.7,0.00027874,2]
[356417079,1742429451265,-500.0,0.00027874,2]
[356417080,1742429451274,-624.86032537,0.00027874,2]
[356417081,1742429451284,-564.2,0.00027874,2]
[356417082,1742429451294,-151.0,0.00027874,7]
[356417083,1742429451303,-151.0,0.00027874,7]
[356417084,1742429451313,-151.0,0.00027874,7]
[356417085,1742429451324,-151.0,0.00027874,7]
[356417086,1742429451333,-151.0,0.00027874,7]
[356417087,1742429451343,-500.0,0.00027874,2]
[356417088,1742429451354,-280.51392,0.00027874,7]
[356417089,1742429451364,-500.0,0.00027874,2]
[356417090,1742429451373,-567.74,0.00027874,2]
[356417091,1742429451383,-975.75,0.00027874,2]
[356417092,1742429451392,-500.0,0.00027874,2]
[356417093,1742429451402,-151.0,0.00027874,7]
[356417094,1742429451411,-151.0,0.00027874,7]
[356417095,1742429451421,-500.0,0.00027874,2]
[356417096,1742429451431,-500.0,0.00027874,2]
[356417097,1742429451440,-500.0,0.00027874,2]
[356417098,1742429451450,-1049.13,0.00027874,2]
[356417099,1742429451459,-500.0,0.00027874,2]
[356417100,1742429451469,-500.0,0.00027874,2]
[356417101,1742429451479,-500.0,0.00027874,2]
[356417102,1742429451490,-500.0,0.00027874,2]
[356417103,1742429451499,-500.0,0.00027874,2]
[356417104,1742429451509,-500.0,0.00027874,2]
[356417105,1742429451519,-500.0,0.00027874,2]
[356417106,1742429451528,-579.48,0.00027874,2]
[356417107,1742429451538,-500.0,0.00027874,2]
[356417108,1742429451547,-164.170015,0.00027874,7]
[356417109,1742429451556,-164.170015,0.00027874,7]
[356417110,1742429451566,-164.170015,0.00027874,7]
[356417111,1742429451575,-164.170015,0.00027874,7]
[356417112,1742429451585,-164.170015,0.00027874,7]
[356417113,1742429451595,-164.170019,0.00027874,7]
[356417114,1742429451604,-500.0,0.00027874,2]
[356417115,1742429451614,-613.24,0.00027874,2]
[356417116,1742429451624,-500.0,0.00027874,2]
[356417117,1742429451633,-500.0,0.00027874,2]
[356417118,1742429451643,-606.13,0.00027874,2]
[356417119,1742429451653,-536.86,0.00027874,2]
[356417120,1742429451663,-151.0,0.00027874,7]
[356417121,1742429451673,-151.0,0.00027874,7]
[356417122,1742429451683,-151.0,0.00027874,7]
[356417123,1742429451693,-500.0,0.00027874,2]
[356417124,1742429451702,-275.48981818,0.00027874,2]
[356417125,1742429451712,-555.6,0.00027874,2]
[356417126,1742429451721,-500.0,0.00027874,2]
[356417127,1742429451731,-500.0,0.00027874,2]
[356417128,1742429451740,-500.0,0.00027874,2]
[356417129,1742429451750,-151.0,0.00027874,7]
[356417130,1742429451760,-151.0,0.00027874,7]
[356417131,1742429451770,-500.0,0.00027874,2]
[356417132,1742429451779,-500.0,0.00027874,2]
[356417133,1742429451790,-964.77,0.00027874,2]
[356417134,1742429451799,-151.0,0.00027874,7]
[356417135,1742429451809,-151.0,0.00027874,7]
[356417136,1742429451819,-523.62051836,0.00027874,2]
[356417137,1742429451829,-1124.21,0.00027874,2]
[356417138,1742429451839,-303.43594558,0.00027874,2]
[356417139,1742429451848,-754.87,0.00027874,2]
[356417140,1742429451860,-151.0,0.00027874,7]
[356417141,1742429451869,-500.0,0.00027874,2]
[356417142,1742429451880,-606.25,0.00027874,2]
[356417143,1742429451889,-500.0,0.00027874,2]
[356417144,1742429451899,-560.09,0.00027874,2]
[356417145,1742429451909,-186.811667,0.00027874,7]
[356417146,1742429451923,-500.0,0.00027874,2]
[356417147,1742429451933,-710.63,0.00027874,2]
[356417148,1742429451944,-500.0,0.00027874,2]
[356417149,1742429451953,-500.0,0.00027874,2]
[356417150,1742429451965,-955.203588,0.00027874,7]
[356417151,1742429451975,-260.73291796,0.00027874,2]
[356417152,1742429451984,-500.0,0.00027874,2]
[356417153,1742429451995,-955.203586,0.00027874,7]
[356417154,1742429452006,-500.0,0.00027874,2]
[356417155,1742429452015,-606.83,0.00027874,2]
[356417156,1742429452025,-500.0,0.00027874,2]
[356417157,1742429452034,-500.0,0.00027874,2]
[356417158,1742429452044,-500.0,0.00027874,2]
[356417159,1742429452054,-728.7,0.00027874,2]
[356417160,1742429452064,-500.0,0.00027874,2]
[356417161,1742429452074,-504.06,0.00027874,2]
[356417162,1742429452084,-500.0,0.00027874,2]
[356417163,1742429452094,-731.57,0.00027874,2]
[356417164,1742429452105,-638.18,0.00027874,2]
[356417165,1742429452115,-500.0,0.00027874,2]
[356417166,1742429452124,-1067.09,0.00027874,2]
[356417167,1742429452133,-500.0,0.00027874,2]
[356417169,1742429452143,-151.0,0.00027876,7]
[356417170,1742429452153,-151.0,0.00027876,7]
[356417171,1742429452163,-154.160073,0.00027877,7]
[356417172,1742429452173,-151.0,0.00027877,7]
[356417173,1742429452182,-234.563473,0.00027877,7]
[356417174,1742429452192,-234.563473,0.00027877,7]
[356417175,1742429452202,-160.020009,0.00027877,7]
[356417176,1742429452211,-160.020009,0.00027877,7]
[356417177,1742429452220,-195.714689,0.00027877,7]
[356417178,1742429452229,-151.0,0.00027877,7]
[356417179,1742429452239,-815.96699464,0.00027882,2]
[356417180,1742429452248,-528.51,0.00027886,2]
[356417181,1742429452258,-500.0,0.00027886,2]
[356417182,1742429452267,-500.0,0.00027886,2]
[356417183,1742429452277,-500.0,0.00027886,2]
[356417184,1742429452287,-500.0,0.00027886,2]
[356417185,1742429452297,-500.0,0.00027886,2]
[356417186,1742429452306,-500.0,0.00027886,2]
[356417187,1742429452316,-500.17,0.00027886,2]
[356417188,1742429452327,-547.6,0.00027886,2]
[356417189,1742429452337,-510.19,0.00027886,2]
[356417190,1742429452346,-396.01737382,0.00027886,2]
[356417191,1742429452359,-500.0,0.00027886,2]
[356417192,1742429452369,-500.0,0.00027886,2]
[356417193,1742429452379,-500.0,0.00027886,2]
[356417194,1742429452388,-500.0,0.00027886,2]
[356417195,1742429452398,-500.0,0.00027886,2]
[356417196,1742429452407,-500.0,0.00027886,2]
[356417197,1742429452418,-500.0,0.00027886,2]
[356417198,1742429452428,-532.24,0.00027886,2]
[356417199,1742429452438,-500.0,0.00027886,2]
[356417200,1742429452447,-500.0,0.00027886,2]
[356417201,1742429452457,-611.3,0.00027886,2]
[356417202,1742429452466,-500.0,0.00027886,2]
[356417203,1742429452475,-830.24,0.00027886,2]
[356417204,1742429452484,-553.99932497,0.00027886,2]
[356417205,1742429452494,-500.0,0.00027886,2]
[356417206,1742429452503,-1438.85,0.00027886,2]
[356417207,1742429452514,-151.0,0.00027886,7]
[356417208,1742429452524,-500.0,0.00027886,2]
[356417209,1742429452535,-500.0,0.00027886,2]
[356417210,1742429452545,-500.0,0.00027886,2]
[356417211,1742429452555,-510.36109894,0.00027886,2]
[356417212,1742429452565,-500.0,0.00027886,2]
[356417213,1742429452574,-500.0,0.00027886,2]
[356417214,1742429452584,-500.0,0.00027886,2]
[356417215,1742429452593,-1391.13,0.00027886,2]
[356417216,1742429452603,-500.0,0.00027886,2]
[356417217,1742429452613,-234.563473,0.00027886,7]
[356417218,1742429452622,-716.36,0.00027886,2]
[356417219,1742429452633,-595.75,0.00027886,2]
[356417220,1742429452644,-500.0,0.00027886,2]
[356417221,1742429452653,-1454.99,0.00027886,2]
[356417222,1742429452663,-234.563473,0.00027886,7]
[356417223,1742429452674,-675.21,0.00027886,2]
[356417224,1742429452684,-500.0,0.00027886,2]
[356417225,1742429452694,-515.44,0.00027886,2]
[356417226,1742429452703,-500.0,0.00027886,2]
[356417227,1742429452713,-634.85,0.00027886,2]
[356417228,1742429452723,-500.0,0.00027886,2]
[356417229,1742429452733,-1552.13,0.00027886,2]
[356417230,1742429452743,-617.02739074,0.00027886,2]
[356417231,1742429452753,-520.80391456,0.00027886,2]
[356417232,1742429452763,-500.0,0.00027886,2]
[356417233,1742429452773,-500.0,0.00027886,2]
[356417234,1742429452783,-500.0,0.00027886,2]
[356417235,1742429452793,-500.0,0.00027886,2]
[356417236,1742429452804,-1363.03,0.00027886,2]
[356417237,1742429452813,-759.42,0.00027886,2]
[356417238,1742429452822,-200.0,0.00027886,2]
[356417239,1742429453004,-515.40749794,0.00027886,2]
[356417240,1742429453028,-500.0,0.00027886,2]
[356417241,1742429453038,-500.0,0.00027886,2]
[356417242,1742429453048,-585.52,0.00027886,2]
[356417243,1742429453058,-577.74,0.00027886,2]
[356417244,1742429453067,-500.0,0.00027886,2]
[356417245,1742429453078,-500.0,0.00027886,2]
[356417246,1742429453088,-160.020009,0.00027886,7]
[356417247,1742429453097,-160.020009,0.00027886,7]
[356417248,1742429453109,-942.79,0.00027886,2]
[356417249,1742429453119,-1896.17,0.00027886,2]
[356417250,1742429453128,-160.020009,0.00027886,7]
[356417251,1742429453137,-160.020009,0.00027886,7]
[356417252,1742429453147,-500.0,0.00027886,2]
[356417253,1742429453158,-500.0,0.00027886,2]
[356417254,1742429453168,-845.54,0.00027886,2]
[356417255,1742429453178,-1080.65,0.00027886,2]
[356417256,1742429453187,-500.0,0.00027886,2]
[356417257,1742429453197,-588.13,0.00027886,2]
[356417258,1742429453206,-195.956261,0.00027886,2]
[356417259,1742429453215,-151.0,0.00027886,7]
[356417260,1742429453225,-753.55,0.00027886,2]
[356417261,1742429453234,-585.3040303,0.00027886,2]
[356417262,1742429453244,-151.0,0.00027886,7]
[356417263,1742429453253,-500.0,0.00027886,2]
[356417264,1742429453264,-500.0,0.00027886,2]
[356417265,1742429453273,-500.0,0.00027886,2]
[356417266,1742429453283,-570.95,0.00027886,2]
[356417267,1742429453292,-500.0,0.00027886,2]
[356417268,1742429453301,-1924.39,0.00027886,2]
[356417269,1742429453311,-471.71077503,0.00027886,2]
[356417270,1742429453320,-500.0,0.00027886,2]
[356417271,1742429453330,-500.0,0.00027886,2]
[356417272,1742429453340,-561.68,0.00027886,2]
[356417273,1742429453350,-716.58,0.00027886,2]
[356417274,1742429453362,-500.0,0.00027886,2]
[356417275,1742429453371,-500.0,0.00027886,2]
[356417276,1742429453381,-1105.37,0.00027886,2]
[356417277,1742429453391,-1515.07,0.00027886,2]
[356417278,1742429453400,-624.32,0.00027886,2]
[356417279,1742429453410,-284.09946038,0.00027886,2]
[356417280,1742429453420,-500.0,0.00027886,2]
[356417281,1742429453431,-500.0,0.00027886,2]
[356417282,1742429453440,-1500.0,0.00027886,2]
[356417283,1742429453450,-1270.74,0.00027886,2]
[356417284,1742429453460,-1370.61,0.00027886,2]
[356417285,1742429453469,-822.95,0.00027886,2]
[356417286,1742429453479,-521.79112466,0.00027886,2]
[356417287,1742429453489,-500.0,0.00027886,2]
[356417288,1742429453499,-500.0,0.00027886,2]
[356417289,1742429453508,-500.0,0.00027886,2]
[356417290,1742429453518,-500.0,0.00027886,2]
[356417291,1742429453527,-764.32,0.00027886,2]
[356417292,1742429453537,-500.0,0.00027886,2]
[356417293,1742429453547,-500.0,0.00027886,2]
[356417294,1742429453556,-500.0,0.00027886,2]
[356417295,1742429453566,-500.0,0.00027886,2]
[356417296,1742429453575,-500.0,0.00027886,2]
[356417297,1742429453586,-500.0,0.00027886,2]
[356417298,1742429453596,-1556.19,0.00027886,2]
[356417299,1742429453606,-500.0,0.00027886,2]
[356417300,1742429453616,-500.0,0.00027886,2]
[356417301,1742429453626,-500.0,0.00027886,2]
[356417302,1742429453635,-1701.7,0.00027886,2]
[356417303,1742429453645,-500.0,0.00027886,2]
[356417304,1742429453655,-576.66,0.00027886,2]
[356417305,1742429453665,-1995.64,0.00027886,2]
[356417306,1742429453675,-500.0,0.00027886,2]
[356417307,1742429453684,-500.0,0.00027886,2]
[356417308,1742429453694,-500.0,0.00027886,2]
[356417309,1742429453704,-500.0,0.00027886,2]
[356417310,1742429453714,-1121.54,0.00027886,2]
[356417311,1742429453724,-500.0,0.00027886,2]
[356417312,1742429453734,-1144.39,0.00027886,2]
[356417313,1742429453744,-1413.97,0.00027886,2]
[356417314,1742429453754,-982.29,0.00027886,2]
[356417315,1742429453764,-500.0,0.00027886,2]
[356417316,1742429453774,-1161.83,0.00027886,2]
[356417317,1742429453784,-878.77,0.00027886,2]
[356417318,1742429453794,-1146.98,0.00027886,2]
[356417319,1742429453803,-500.0,0.00027886,2]
[356417320,1742429453812,-500.0,0.00027886,2]
[356417321,1742429453822,-1364.15,0.00027886,2]
[356417322,1742429453832,-500.0,0.00027886,2]
[356417323,1742429453842,-500.0,0.00027886,2]
[356417324,1742429453851,-709.92,0.00027886,2]
[356417325,1742429453863,-934.56,0.00027886,2]
[356417326,1742429453873,-579.21,0.00027886,2]
[356417327,1742429453882,-500.0,0.00027886,2]
[356417328,1742429453891,-500.0,0.00027886,2]
[356417329,1742429453901,-500.0,0.00027886,2]
[356417330,1742429453915,-500.0,0.00027886,2]
[356417331,1742429453924,-1000.0,0.00027886,2]
[356417332,1742429453934,-685.56,0.00027886,2]
[356417333,1742429453943,-500.0,0.00027886,2]
[356417334,1742429453953,-500.0,0.00027886,2]
[356417335,1742429453963,-500.0,0.00027886,2]
[356417336,1742429453973,-500.0,0.00027886,2]
[356417337,1742429453983,-500.0,0.00027886,2]
[356417338,1742429453996,-500.0,0.00027886,2]
[356417339,1742429454007,-1690.74,0.00027886,2]
[356417340,1742429454016,-500.0,0.00027886,2]
[356417341,1742429454027,-959.5,0.00027886,2]
[356417342,1742429454037,-500.0,0.00027886,2]
[356417343,1742429454048,-500.0,0.00027886,2]
[356417344,1742429454058,-500.0,0.00027886,2]
[356417345,1742429454068,-1625.84,0.00027886,2]
[356417346,1742429454078,-500.0,0.00027886,2]
[356417347,1742429454087,-500.0,0.00027886,2]
[356417348,1742429454098,-868.33,0.00027886,2]
[356417349,1742429454109,-500.0,0.00027886,2]
[356417350,1742429454120,-500.0,0.00027886,2]
[356417351,1742429454131,-843.21,0.00027886,2]
[356417352,1742429454141,-1264.18,0.00027886,2]
[356417353,1742429454151,-500.0,0.00027886,2]
[356417354,1742429454161,-500.0,0.00027886,2]
[356417355,1742429454171,-500.0,0.00027886,2]
[356417356,1742429454180,-545.7433942,0.00027886,2]
[356417357,1742429454539,-768.6866058,0.00027886,2]
[356417358,1742429454549,-500.0,0.00027886,2]
[356417359,1742429454560,-500.0,0.00027886,2]
[356417360,1742429454569,-813.45,0.00027886,2]
[356417361,1742429454579,-500.0,0.00027886,2]
[356417362,1742429454588,-500.0,0.00027886,2]
[356417363,1742429454600,-500.0,0.00027886,2]
[356417364,1742429454612,-500.0,0.00027886,2]
[356417365,1742429454622,-532.95922827,0.00027886,2]
[356417366,1742429454631,-500.0,0.00027886,2]
[356417367,1742429454641,-500.0,0.00027886,2]
[356417368,1742429454651,-500.0,0.00027886,2]
[356417369,1742429454660,-500.0,0.00027886,2]
[356417370,1742429454671,-500.0,0.00027886,2]
[356417371,1742429454681,-517.14912097,0.00027886,2]
[356417372,1742429454692,-561.62,0.00027886,2]
[356417373,1742429454702,-500.0,0.00027886,2]
[356417374,1742429454712,-500.0,0.00027886,2]
[356417375,1742429454722,-500.0,0.00027886,2]
[356417376,1742429454733,-500.0,0.00027886,2]
[356417377,1742429454744,-500.0,0.00027886,2]
[356417378,1742429454754,-500.0,0.00027886,2]
[356417379,1742429454763,-768.63,0.00027886,2]
[356417380,1742429454773,-500.0,0.00027886,2]
[356417381,1742429454782,-500.0,0.00027886,2]
[356417382,1742429454792,-151.0,0.00027887,7]
[356417383,1742429454801,-151.0,0.00027887,7]
[356417384,1742429454810,-151.0,0.00027887,7]
[356417385,1742429454819,-151.856191,0.00027887,7]
[356417386,1742429454828,-151.856191,0.00027887,7]
[356417387,1742429454837,-151.0,0.00027887,7]
[356417388,1742429454847,-151.0,0.00027887,7]
[356417389,1742429454856,-17.0115097,0.00027887,7]
[356417390,1742429454873,-133.9884903,0.00027887,7]
[356417391,1742429454882,-500.0,0.00027887,2]
[356417392,1742429454891,-618.57862349,0.00027887,2]
[356417393,1742429454902,-821.73,0.00027887,2]
[356417394,1742429454914,-500.0,0.00027887,2]
[356417395,1742429454924,-689.0,0.00027887,2]
[356417396,1742429454934,-504.31,0.00027887,2]
[356417397,1742429454943,-500.0,0.00027887,2]
[356417398,1742429454952,-500.0,0.00027887,2]
[356417399,1742429454962,-705.65,0.00027887,2]
[356417400,1742429454972,-671.1,0.00027887,2]
[356417401,1742429454982,-718.58,0.00027887,2]
[356417402,1742429454992,-967.94,0.00027887,2]
[356417403,1742429455003,-153.699957,0.00027887,7]
[356417404,1742429455014,-1003.48,0.00027887,2]
[356417405,1742429455024,-704.74,0.00027887,2]
[356417406,1742429455035,-593.26,0.00027887,2]
[356417407,1742429455045,-654.32,0.00027887,2]
[356417408,1742429455054,-234.563473,0.00027887,7]
[356417409,1742429455065,-234.563473,0.00027887,7]
[356417410,1742429455075,-500.0,0.00027887,2]
[356417411,1742429455084,-234.563473,0.00027887,7]
[356417412,1742429455095,-234.563471,0.00027887,7]
[356417413,1742429455104,-804.27,0.00027887,2]
[356417414,1742429455114,-500.0,0.00027887,2]
[356417415,1742429455124,-500.0,0.00027887,2]
[356417416,1742429455134,-156.590754,0.00027887,7]
[356417417,1742429455143,-156.59076,0.00027887,7]
[356417418,1742429455154,-1023.44,0.00027887,2]
[356417419,1742429455163,-500.0,0.00027887,2]
[356417420,1742429455173,-500.0,0.00027887,2]
[356417421,1742429455182,-500.0,0.00027887,2]
[356417422,1742429455191,-960.11,0.00027887,2]
[356417423,1742429455200,-500.0,0.00027887,2]
[356417424,1742429455209,-500.0,0.00027887,2]
[356417425,1742429455218,-160.020009,0.00027887,7]
[356417426,1742429455227,-160.020005,0.00027887,7]
[356417427,1742429455238,-500.0,0.00027887,2]
[356417428,1742429455247,-687.49,0.00027887,2]
[356417429,1742429455256,-679.13,0.00027887,2]
[356417430,1742429455265,-558.11,0.00027887,2]
[356417431,1742429455274,-500.0,0.00027887,2]
[356417432,1742429455284,-500.0,0.00027887,2]
[356417433,1742429455295,-151.0,0.00027887,7]
[356417434,1742429455305,-500.0,0.00027887,2]
[356417435,1742429455315,-500.0,0.00027887,2]
[356417436,1742429455324,-780.8,0.00027887,2]
[356417437,1742429455333,-520.77,0.00027887,2]
[356417438,1742429455344,-500.0,0.00027887,2]
[356417439,1742429455353,-500.0,0.00027887,2]
[356417440,1742429455362,-500.0,0.00027887,2]
[356417441,1742429455372,-500.0,0.00027887,2]
[356417442,1742429455381,-1182.16,0.00027887,2]
[356417443,1742429455392,-500.0,0.00027887,2]
[356417444,1742429455401,-719.97,0.00027887,2]
[356417445,1742429455411,-634.28,0.00027887,2]
[356417446,1742429455420,-829.65,0.00027887,2]
[356417447,1742429455429,-1247.21,0.00027887,2]
[356417448,1742429455438,-500.0,0.00027887,2]
[356417449,1742429455448,-1262.48,0.00027887,2]
[356417450,1742429455457,-588.29,0.00027887,2]
[356417451,1742429455467,-543.3,0.00027887,2]
[356417452,1742429455476,-524.64,0.00027887,2]
[356417453,1742429455485,-864.56,0.00027887,2]
[356417454,1742429455494,-616.22,0.00027887,2]
[356417455,1742429455504,-2232.13,0.00027887,2]
[356417456,1742429455513,-500.0,0.00027887,2]
[356417457,1742429455523,-636.25,0.00027887,2]
[356417458,1742429455532,-1525.13,0.00027887,2]
[356417459,1742429455541,-500.0,0.00027887,2]
[356417460,1742429455551,-666.83,0.00027887,2]
[356417461,1742429455561,-500.0,0.00027887,120]
[356417462,1742429455571,-562.89,0.00027887,2]
[356417463,1742429455581,-500.0,0.00027887,2]
[356417464,1742429455590,-500.0,0.00027887,2]
[356417465,1742429455599,-500.0,0.00027887,2]
[356417466,1742429455803,-707.04,0.00027887,2]
[356417467,1742429455813,-522.42,0.00027887,2]
[356417468,1742429455823,-803.73,0.00027887,2]
[356417469,1742429455833,-500.0,0.00027887,2]
[356417470,1742429455842,-500.0,0.00027887,2]
[356417471,1742429455852,-500.0,0.00027887,2]
[356417472,1742429455863,-517.16646496,0.00027887,2]